[Event "FIDE Online Olympiad Div 2 Pool A 2020"]
[Site "Online"]
[Date "2020.08.16"]
[Round "8"]
[White "Schulze, Lara"]
[Black "Zhang, Jilin"]
[Result "1-0"]
[ECO "B90"]
[WhiteElo "2218"]
[BlackElo "2129"]
[Annotator "broadcasts"]
[PlyCount "165"]
[EventDate "2020.08.14"]
[EventType "team-tourn"]
[TimeControl "900+5"]

1. e4 {[%emt 0:00:02]} c5 {[%emt 0:00:03]} 2. Nf3 {[%emt 0:00:02]} d6 {[%emt 0:00:07]} 3. d4 {[%emt 0:00:02]} cxd4 {[%emt 0:00:02]} 4. Nxd4 {[%emt 0:00:00]} Nf6 {[%emt 0:00:02]} 5. Nc3 {[%emt 0:00:01]} a6 {[%emt 0:00:03]} 6. f3 {[%emt 0:00:02]} e5 {[%emt 0:00:08]} 7. Nb3 {[%emt 0:00:02]} Be7 {[%emt 0:00:05]} 8. Be3 {[%emt 0:00:03]} Be6 {[%emt 0:00:21]} 9. Qd2 {[%emt 0:00:03]} h5 {[%emt 0:00:09]} 10. Nd5 {[%emt 0:00:04]} Nxd5 {[%emt 0:00:17]} 11. exd5 {[%emt 0:00:01]} Bf5 {[%emt 0:00:06]} 12. Be2 {[%emt 0:00:21]} Qc7 {[%emt 0:00:13]} 13. c4 {[%emt 0:00:59]} Nd7 {[%emt 0:00:04]} 14. O-O {[%emt 0:01:00]} a5 {[%emt 0:00:33]} 15. Rac1 {[%emt 0:00:12]} b6 {[%emt 0:00:06]} 16. Na1 {[%emt 0:00:08]} h4 {[%emt 0:00:42]} 17. Nc2 {[%emt 0:00:11]} Bxc2 {[%emt 0:00:49]} 18. Rxc2 {[%emt 0:00:51]} Rc8 {[%emt 0:00:37]} 19. Rfc1 {[%emt 0:00:19]} Nc5 {[%emt 0:00:24]} 20. b3 {[%emt 0:01:09]} Bf6 {[%emt 0:00:07]} 21. Bf1 {[%emt 0:01:08]} Qe7 {[%emt 0:00:05]} 22. Rb1 {[%emt 0:00:26]} O-O {[%emt 0:00:37]} 23. a3 {[%emt 0:00:32]} Rfe8 {[%emt 0:00:35]} 24. b4 {[%emt 0:00:33]} axb4 {[%emt 0:00:06]} 25. axb4 {[%emt 0:00:01]} Nd7 {[%emt 0:00:30]} 26. Ra2 {[%emt 0:00:58]} e4 {[%emt 0:00:10]} 27. f4 {[%emt 0:00:08]} Ra8 {[%emt 0:00:04]} 28. Be2 {[%emt 0:00:33]} Bc3 {[%emt 0:01:27]} 29. Qc2 {[%emt 0:00:39]} Rxa2 {[%emt 0:00:02]} 30. Qxa2 {[%emt 0:00:02]} Qf6 {[%emt 0:00:33]} 31. Bg4 {[%emt 0:01:22]} Bd4 {[%emt 0:00:14]} 32. Qf2 {[%emt 0:00:07]} Bxe3 {[%emt 0:00:06]} 33. Qxe3 {[%emt 0:00:00]} Nf8 {[%emt 0:00:19]} 34. Rf1 {[%emt 0:03:29]} Qb2 {[%emt 0:00:52]} 35. b5 {[%emt 0:00:24]} Qc2 {[%emt 0:01:24]} 36. Rc1 {[%emt 0:00:45]} Qd3 {[%emt 0:01:06]} 37. Qxd3 {[%emt 0:00:27]} exd3 {[%emt 0:00:02]} 38. Kf2 {[%emt 0:00:23]} Re4 {[%emt 0:00:34]} 39. g3 {[%emt 0:00:27]} hxg3+ {[%emt 0:00:12]} 40. hxg3 {[%emt 0:00:00]} d2 {[%emt 0:00:08]} 41. Rc2 {[%emt 0:00:04]} Nd7 {[%emt 0:00:42]} 42. Rxd2 {[%emt 0:00:07]} Nc5 {[%emt 0:00:23]} 43. Be2 {[%emt 0:00:05]} g5 {[%emt 0:00:31]} 44. fxg5 {[%emt 0:00:03]} Re5 {[%emt 0:00:03]} 45. Rd4 {[%emt 0:00:08]} Kg7 {[%emt 0:00:30]} 46. Rf4 {[%emt 0:00:05]} Ne4+ {[%emt 0:00:22]} 47. Ke3 {[%emt 0:00:12]} Nxg3+ {[%emt 0:00:03]} 48. Kd3 {[%emt 0:00:09]} Nxe2 {[%emt 0:00:11]} 49. Rf6 {[%emt 0:00:02]} Nc1+ {[%emt 0:00:46]} 50. Kc2 {[%emt 0:00:01]} Ne2 {[%emt 0:00:36]} 51. Rxd6 {[%emt 0:00:05]} Rxg5 {[%emt 0:00:09]} 52. Rxb6 {[%emt 0:00:02]} f5 {[%emt 0:00:04]} 53. d6 {[%emt 0:00:05]} Nd4+ {[%emt 0:00:04]} 54. Kd3 {[%emt 0:00:02]} Ne6 {[%emt 0:00:06]} 55. d7 {[%emt 0:00:05]} Rg3+ {[%emt 0:00:09]} 56. Ke2 {[%emt 0:00:06]} Nd8 {[%emt 0:00:21]} 57. Rb8 {[%emt 0:00:05]} Nf7 {[%emt 0:00:02]} 58. d8=Q {[%emt 0:00:07]} Nxd8 {[%emt 0:00:01]} 59. Rxd8 {[%emt 0:00:00]} Rc3 {[%emt 0:00:07]} 60. Rc8 {[%emt 0:00:09]} Kf6 {[%emt 0:00:04]} 61. b6 {[%emt 0:00:02]} Rb3 {[%emt 0:00:05]} 62. c5 {[%emt 0:00:02]} Ke6 {[%emt 0:00:03]} 63. Rd8 {[%emt 0:00:14]} f4 {[%emt 0:00:04]} 64. Rd6+ {[%emt 0:00:08]} Ke7 {[%emt 0:00:14]} 65. Rd4 {[%emt 0:00:06]} f3+ {[%emt 0:00:21]} 66. Kf2 {[%emt 0:00:02]} Rb5 {[%emt 0:00:04]} 67. Rc4 {[%emt 0:00:04]} Rb3 {[%emt 0:00:02]} 68. c6 {[%emt 0:00:06]} Kd8 {[%emt 0:00:05]} 69. Rd4+ {[%emt 0:00:06]} Kc8 {[%emt 0:00:03]} 70. b7+ {[%emt 0:00:12]} Kc7 {[%emt 0:00:02]} 71. Rc4 {[%emt 0:00:03]} Rb2+ {[%emt 0:00:26]} 72. Kxf3 {[%emt 0:00:01]} Rb3+ {[%emt 0:00:01]} 73. Ke4 {[%emt 0:00:02]} Rb5 {[%emt 0:00:02]} 74. Kd4 {[%emt 0:00:03]} Rb1 {[%emt 0:00:02]} 75. Kc5 {[%emt 0:00:04]} Rb2 {[%emt 0:00:12]} 76. Rb4 {[%emt 0:00:07]} Rc2+ {[%emt 0:00:03]} 77. Kb5 {[%emt 0:00:08]} Rh2 {[%emt 0:00:11]} 78. Ka4 {[%emt 0:00:09]} Rh8 {[%emt 0:00:06]} 79. Kb5 {[%emt 0:00:06]} Rh5+ {[%emt 0:00:02]} 80. Ka6 {[%emt 0:00:06]} Rh8 {[%emt 0:00:04]} 81. Ka7 {[%emt 0:00:03]} Kxc6 {[%emt 0:00:07]} 82. b8=Q {[%emt 0:00:02]} Rxb8 {[%emt 0:00:03]} 83. Rxb8 {[%emt 0:00:00]} 1-0

[Event "FIDE Online Olympiad Div 2 Pool A 2020"]
[Site "Online"]
[Date "2020.08.16"]
[Round "8"]
[White "Ryjanova, Julia"]
[Black "Osmanodja, Filiz"]
[Result "0-1"]
[ECO "E11"]
[WhiteElo "2200"]
[BlackElo "2182"]
[Annotator "broadcasts"]
[PlyCount "76"]
[EventDate "2020.08.14"]
[EventType "team-tourn"]
[TimeControl "900+5"]

1. d4 {[%emt 0:00:03]} Nf6 {[%emt 0:00:03]} 2. c4 {[%emt 0:00:04]} e6 {[%emt 0:00:02]} 3. Nf3 {[%emt 0:00:02]} Bb4+ {[%emt 0:00:04]} 4. Nbd2 {[%emt 0:00:03]} O-O {[%emt 0:00:13]} 5. a3 {[%emt 0:00:08]} Be7 {[%emt 0:00:03]} 6. e4 {[%emt 0:00:17]} d5 {[%emt 0:00:19]} 7. Bd3 {[%emt 0:03:19]} c5 {[%emt 0:00:58]} 8. e5 {[%emt 0:00:44]} Nfd7 {[%emt 0:00:22]} 9. cxd5 {[%emt 0:00:07]} exd5 {[%emt 0:00:06]} 10. O-O {[%emt 0:01:45]} cxd4 {[%emt 0:00:24]} 11. Nb3 {[%emt 0:01:39]} Nc6 {[%emt 0:00:06]} 12. Bf4 {[%emt 0:00:32]} f6 {[%emt 0:03:53]} 13. exf6 {[%emt 0:00:26]} Bxf6 {[%emt 0:00:56]} 14. Re1 {[%emt 0:01:09]} Nb6 {[%emt 0:01:05]} 15. Qc2 {[%emt 0:01:26]} h6 {[%emt 0:02:07]} 16. Nc5 {[%emt 0:00:36]} Be7 {[%emt 0:00:59]} 17. Bg3 {[%emt 0:00:10]} Bg4 {[%emt 0:02:26]} 18. Nxb7 {[%emt 0:01:30]} Qc8 {[%emt 0:00:01]} 19. Nd6 {[%emt 0:01:25]} Bxd6 {[%emt 0:00:12]} 20. Bxd6 {[%emt 0:00:02]} Rf6 {[%emt 0:00:47]} 21. Be5 {[%emt 0:00:32]} Nxe5 {[%emt 0:00:34]} 22. Nxe5 {[%emt 0:00:02]} Qxc2 {[%emt 0:00:14]} 23. Bxc2 {[%emt 0:00:01]} Bf5 {[%emt 0:00:13]} 24. Bxf5 {[%emt 0:00:16]} Rxf5 {[%emt 0:00:00]} 25. Rad1 {[%emt 0:00:11]} Re8 {[%emt 0:00:26]} 26. Nf3 {[%emt 0:00:05]} Rxe1+ {[%emt 0:00:08]} 27. Rxe1 {[%emt 0:00:03]} Rf4 {[%emt 0:00:06]} 28. Rd1 {[%emt 0:00:13]} Nc4 {[%emt 0:00:08]} 29. b3 {[%emt 0:00:12]} Nxa3 {[%emt 0:00:06]} 30. Rxd4 {[%emt 0:00:06]} Rxd4 {[%emt 0:00:06]} 31. Nxd4 {[%emt 0:00:01]} Kf7 {[%emt 0:00:03]} 32. f4 {[%emt 0:00:04]} Kf6 {[%emt 0:00:01]} 33. Kf2 {[%emt 0:00:02]} g5 {[%emt 0:00:01]} 34. g3 {[%emt 0:00:01]} gxf4 {[%emt 0:00:02]} 35. gxf4 {[%emt 0:00:02]} Nb1 {[%emt 0:00:02]} 36. Ke3 {[%emt 0:00:04]} Nc3 {[%emt 0:00:01]} 37. Nb5 {[%emt 0:00:13]} Nxb5 {[%emt 0:00:01]} 38. Kd3 {[%emt 0:00:07]} Kf5 {[%emt 0:00:02]} 0-1

[Event "FIDE Online Olympiad Div 2 Pool A 2020"]
[Site "Online"]
[Date "2020.08.16"]
[Round "8"]
[White "Vogel, Roven"]
[Black "Kuybokarov, Temur"]
[Result "0-1"]
[ECO "D25"]
[WhiteElo "2046"]
[BlackElo "2352"]
[Annotator "broadcasts"]
[PlyCount "80"]
[EventDate "2020.08.14"]
[EventType "team-tourn"]
[TimeControl "900+5"]

1. Nf3 {[%emt 0:00:04]} d5 {[%emt 0:00:07]} 2. d4 {[%emt 0:00:03]} Nf6 {[%emt 0:00:11]} 3. c4 {[%emt 0:00:03]} dxc4 {[%emt 0:00:08]} 4. e3 {[%emt 0:00:03]} Be6 {[%emt 0:00:05]} 5. Nc3 {[%emt 0:00:17]} a6 {[%emt 0:00:02]} 6. Ng5 {[%emt 0:00:40]} Bg4 {[%emt 0:00:03]} 7. f3 {[%emt 0:01:40]} Bc8 {[%emt 0:00:03]} 8. Bxc4 {[%emt 0:00:07]} e6 {[%emt 0:00:01]} 9. a4 {[%emt 0:02:48]} c5 {[%emt 0:01:23]} 10. d5 {[%emt 0:01:41]} h6 {[%emt 0:00:34]} 11. Nge4 {[%emt 0:01:04]} Nxd5 {[%emt 0:01:46]} 12. Nxd5 {[%emt 0:00:11]} exd5 {[%emt 0:00:02]} 13. Qxd5 {[%emt 0:00:01]} Qc7 {[%emt 0:02:40]} 14. Qh5 {[%emt 0:00:25]} Nc6 {[%emt 0:01:08]} 15. f4 {[%emt 0:00:03]} Qe7 {[%emt 0:01:20]} 16. O-O {[%emt 0:05:11]} g6 {[%emt 0:00:22]} 17. Qf3 {[%emt 0:00:02]} Bg7 {[%emt 0:00:17]} 18. Nc3 {[%emt 0:00:38]} Nb4 {[%emt 0:00:59]} 19. e4 {[%emt 0:00:17]} O-O {[%emt 0:00:44]} 20. f5 {[%emt 0:00:02]} Nc2 {[%emt 0:01:15]} 21. f6 {[%emt 0:00:24]} Qxf6 {[%emt 0:00:28]} 22. Qxf6 {[%emt 0:00:02]} Bxf6 {[%emt 0:00:01]} 23. Rxf6 {[%emt 0:00:01]} Kg7 {[%emt 0:01:20]} 24. Rf2 {[%emt 0:00:02]} Nxa1 {[%emt 0:00:03]} 25. b3 {[%emt 0:00:02]} b5 {[%emt 0:00:35]} 26. axb5 {[%emt 0:00:54]} axb5 {[%emt 0:00:01]} 27. Nxb5 {[%emt 0:00:01]} Be6 {[%emt 0:00:52]} 28. Nc7 {[%emt 0:00:11]} Bxc4 {[%emt 0:00:11]} 29. Bb2+ {[%emt 0:00:03]} Kg8 {[%emt 0:00:02]} 30. Nxa8 {[%emt 0:00:04]} Nxb3 {[%emt 0:00:12]} 31. Nb6 {[%emt 0:00:07]} Be6 {[%emt 0:00:02]} 32. Nd5 {[%emt 0:00:14]} Bxd5 {[%emt 0:00:04]} 33. exd5 {[%emt 0:00:00]} Rd8 {[%emt 0:00:01]} 34. Re2 {[%emt 0:00:04]} Nd4 {[%emt 0:00:07]} 35. Bxd4 {[%emt 0:00:13]} cxd4 {[%emt 0:00:01]} 36. Re5 {[%emt 0:00:00]} Kg7 {[%emt 0:00:08]} 37. Kf2 {[%emt 0:00:05]} Kf6 {[%emt 0:00:01]} 38. Re4 {[%emt 0:00:02]} Rxd5 {[%emt 0:00:00]} 39. g4 {[%emt 0:00:08]} d3 {[%emt 0:00:10]} 40. Ke1 {[%emt 0:00:02]} Re5 {[%emt 0:00:02]} 0-1

[Event "FIDE Online Olympiad Div 2 Pool A 2020"]
[Site "Online"]
[Date "2020.08.16"]
[Round "8"]
[White "Lim, Cassandra"]
[Black "Schneider, Jana"]
[Result "1/2-1/2"]
[ECO "E46"]
[WhiteElo "1893"]
[BlackElo "2223"]
[Annotator "broadcasts"]
[PlyCount "131"]
[EventDate "2020.08.14"]
[EventType "team-tourn"]
[TimeControl "900+5"]

1. d4 {[%emt 0:00:01]} Nf6 {[%emt 0:00:03]} 2. c4 {[%emt 0:00:01]} e6 {[%emt 0:00:01]} 3. Nc3 {[%emt 0:00:01]} Bb4 {[%emt 0:00:02]} 4. e3 {[%emt 0:00:01]} O-O {[%emt 0:00:02]} 5. Nge2 {[%emt 0:00:01]} Re8 {[%emt 0:00:02]} 6. a3 {[%emt 0:00:02]} Bf8 {[%emt 0:00:02]} 7. Ng3 {[%emt 0:00:07]} d5 {[%emt 0:00:07]} 8. Bd3 {[%emt 0:00:06]} b6 {[%emt 0:00:09]} 9. O-O {[%emt 0:00:07]} Bb7 {[%emt 0:00:06]} 10. Re1 {[%emt 0:01:09]} Nbd7 {[%emt 0:00:06]} 11. e4 {[%emt 0:00:44]} dxe4 {[%emt 0:00:15]} 12. Ncxe4 {[%emt 0:00:20]} c5 {[%emt 0:00:04]} 13. Be3 {[%emt 0:00:44]} Rc8 {[%emt 0:02:06]} 14. Rc1 {[%emt 0:00:12]} Nxe4 {[%emt 0:00:49]} 15. Nxe4 {[%emt 0:01:43]} cxd4 {[%emt 0:01:11]} 16. Bxd4 {[%emt 0:00:07]} Nc5 {[%emt 0:00:03]} 17. Bxc5 {[%emt 0:01:48]} Bxc5 {[%emt 0:00:30]} 18. b4 {[%emt 0:00:24]} Bf8 {[%emt 0:01:53]} 19. Qe2 {[%emt 0:00:13]} Qh4 {[%emt 0:00:44]} 20. Red1 {[%emt 0:01:58]} Red8 {[%emt 0:00:09]} 21. Ng3 {[%emt 0:00:14]} Ba6 {[%emt 0:00:40]} 22. b5 {[%emt 0:01:19]} Bb7 {[%emt 0:00:05]} 23. a4 {[%emt 0:00:12]} Bc5 {[%emt 0:00:11]} 24. Qh5 {[%emt 0:00:29]} Qxh5 {[%emt 0:02:11]} 25. Nxh5 {[%emt 0:00:02]} Rd6 {[%emt 0:00:14]} 26. Be2 {[%emt 0:00:31]} Rcd8 {[%emt 0:00:11]} 27. Ng3 {[%emt 0:01:01]} f5 {[%emt 0:01:06]} 28. Rxd6 {[%emt 0:00:58]} Bxd6 {[%emt 0:00:25]} 29. Rd1 {[%emt 0:00:39]} Kf7 {[%emt 0:00:03]} 30. Bd3 {[%emt 0:00:29]} g6 {[%emt 0:00:20]} 31. Ne2 {[%emt 0:00:18]} Bc5 {[%emt 0:01:54]} 32. Nc3 {[%emt 0:00:32]} Ke7 {[%emt 0:00:20]} 33. Kf1 {[%emt 0:00:11]} Bb4 {[%emt 0:00:11]} 34. Na2 {[%emt 0:00:08]} Bd6 {[%emt 0:00:10]} 35. h3 {[%emt 0:00:06]} Bc5 {[%emt 0:00:03]} 36. f3 {[%emt 0:00:05]} Rd7 {[%emt 0:00:07]} 37. Bc2 {[%emt 0:00:06]} Rc7 {[%emt 0:00:07]} 38. Bd3 {[%emt 0:00:04]} Bd6 {[%emt 0:00:04]} 39. Ke2 {[%emt 0:00:03]} Rc5 {[%emt 0:00:06]} 40. Nc1 {[%emt 0:00:08]} Re5+ {[%emt 0:00:06]} 41. Kf1 {[%emt 0:00:04]} Rc5 {[%emt 0:00:15]} 42. Nb3 {[%emt 0:00:02]} Rc7 {[%emt 0:00:01]} 43. Re1 {[%emt 0:00:08]} Bb4 {[%emt 0:00:03]} 44. Re2 {[%emt 0:00:07]} Rd7 {[%emt 0:00:06]} 45. Bc2 {[%emt 0:00:04]} Kf6 {[%emt 0:00:04]} 46. Kf2 {[%emt 0:00:04]} e5 {[%emt 0:00:05]} 47. Nc1 {[%emt 0:00:09]} Rd2 {[%emt 0:00:24]} 48. Rxd2 {[%emt 0:00:06]} Bxd2 {[%emt 0:00:01]} 49. Nb3 {[%emt 0:00:07]} Bb4 {[%emt 0:00:04]} 50. Ke3 {[%emt 0:00:04]} Ke6 {[%emt 0:00:02]} 51. Bd3 {[%emt 0:00:03]} Kd6 {[%emt 0:00:04]} 52. Bc2 {[%emt 0:00:03]} Bc8 {[%emt 0:00:04]} 53. Bd3 {[%emt 0:00:03]} Be6 {[%emt 0:00:01]} 54. Be2 {[%emt 0:00:09]} Bf7 {[%emt 0:00:03]} 55. Bd3 {[%emt 0:00:01]} Bc5+ {[%emt 0:00:02]} 56. Ke2 {[%emt 0:00:05]} e4 {[%emt 0:00:04]} 57. Nxc5 {[%emt 0:00:28]} exd3+ {[%emt 0:00:19]} 58. Nxd3 {[%emt 0:00:02]} Bxc4 {[%emt 0:00:01]} 59. Ke3 {[%emt 0:00:03]} Bxd3 {[%emt 0:00:02]} 60. Kxd3 {[%emt 0:00:01]} Kd5 {[%emt 0:00:01]} 61. f4 {[%emt 0:00:15]} Kc5 {[%emt 0:00:05]} 62. Kc3 {[%emt 0:00:01]} Kd5 {[%emt 0:00:02]} 63. Kd3 {[%emt 0:00:01]} h6 {[%emt 0:00:06]} 64. h4 {[%emt 0:00:08]} h5 {[%emt 0:00:14]} 65. g3 {[%emt 0:00:01]} Kc5 {[%emt 0:00:03]} 66. Kc3 {[%emt 0:00:00]} 1/2-1/2

[Event "FIDE Online Olympiad Div 2 Pool A 2020"]
[Site "Online"]
[Date "2020.08.16"]
[Round "9"]
[White "Stoyanov, Tsvetan"]
[Black "Svane, Rasmus"]
[Result "1-0"]
[ECO "B10"]
[WhiteElo "2304"]
[BlackElo "2457"]
[Annotator "broadcasts"]
[PlyCount "113"]
[EventDate "2020.08.14"]
[EventType "team-tourn"]
[TimeControl "900+5"]

1. e4 {[%emt 0:00:01]} c6 {[%emt 0:00:05]} 2. c4 {[%emt 0:00:04]} d5 {[%emt 0:00:03]} 3. exd5 {[%emt 0:00:02]} cxd5 {[%emt 0:00:00]} 4. cxd5 {[%emt 0:00:00]} Nf6 {[%emt 0:00:01]} 5. Bb5+ {[%emt 0:00:02]} Nbd7 {[%emt 0:00:02]} 6. Nf3 {[%emt 0:00:02]} a6 {[%emt 0:00:23]} 7. Ba4 {[%emt 0:00:03]} g6 {[%emt 0:00:47]} 8. O-O {[%emt 0:00:13]} Nxd5 {[%emt 0:00:12]} 9. Nc3 {[%emt 0:03:23]} N5b6 {[%emt 0:00:05]} 10. Bb3 {[%emt 0:00:35]} Nc5 {[%emt 0:00:21]} 11. Bxf7+ {[%emt 0:01:53]} Kxf7 {[%emt 0:00:03]} 12. d4 {[%emt 0:00:01]} Ne6 {[%emt 0:01:24]} 13. Qb3 {[%emt 0:00:03]} Kg7 {[%emt 0:04:49]} 14. Re1 {[%emt 0:06:16]} Qd6 {[%emt 0:00:08]} 15. Be3 {[%emt 0:01:35]} Nd7 {[%emt 0:01:22]} 16. Ne4 {[%emt 0:00:31]} Qb6 {[%emt 0:00:19]} 17. Qd3 {[%emt 0:00:12]} Qb5 {[%emt 0:00:23]} 18. Qd2 {[%emt 0:00:41]} Nf6 {[%emt 0:01:55]} 19. Nc3 {[%emt 0:00:07]} Qh5 {[%emt 0:00:34]} 20. d5 {[%emt 0:00:09]} Nd8 {[%emt 0:01:57]} 21. Bd4 {[%emt 0:00:01]} Nf7 {[%emt 0:00:16]} 22. Ne4 {[%emt 0:00:05]} Bg4 {[%emt 0:00:47]} 23. Ng3 {[%emt 0:00:28]} Qh6 {[%emt 0:00:14]} 24. Be3 {[%emt 0:00:04]} g5 {[%emt 0:00:01]} 25. Nxg5 {[%emt 0:00:13]} Nxg5 {[%emt 0:00:05]} 26. Bxg5 {[%emt 0:00:01]} Qg6 {[%emt 0:00:01]} 27. h3 {[%emt 0:00:01]} Bd7 {[%emt 0:00:07]} 28. d6 {[%emt 0:00:02]} h6 {[%emt 0:00:32]} 29. Bh4 {[%emt 0:00:07]} exd6 {[%emt 0:00:03]} 30. Bxf6+ {[%emt 0:00:08]} Kxf6 {[%emt 0:00:13]} 31. Qd4+ {[%emt 0:00:04]} Kf7 {[%emt 0:00:01]} 32. Qxh8 {[%emt 0:00:02]} Bc6 {[%emt 0:00:05]} 33. Qd4 {[%emt 0:00:03]} Bg7 {[%emt 0:00:09]} 34. Qc4+ {[%emt 0:00:01]} d5 {[%emt 0:00:06]} 35. Qf4+ {[%emt 0:00:01]} Kg8 {[%emt 0:00:01]} 36. Nf5 {[%emt 0:00:02]} Kh8 {[%emt 0:00:12]} 37. Re3 {[%emt 0:00:19]} Rf8 {[%emt 0:00:05]} 38. Ne7 {[%emt 0:00:10]} Qf6 {[%emt 0:00:10]} 39. Qxf6 {[%emt 0:00:05]} Rxf6 {[%emt 0:00:00]} 40. Rd1 {[%emt 0:00:07]} Rd6 {[%emt 0:00:08]} 41. Nf5 {[%emt 0:00:04]} Rf6 {[%emt 0:00:01]} 42. Nxg7 {[%emt 0:00:07]} Kxg7 {[%emt 0:00:00]} 43. Rd4 {[%emt 0:00:00]} Rd6 {[%emt 0:00:08]} 44. g4 {[%emt 0:00:02]} Kf6 {[%emt 0:00:04]} 45. Kg2 {[%emt 0:00:02]} Bd7 {[%emt 0:00:05]} 46. Kg3 {[%emt 0:00:01]} Be6 {[%emt 0:00:02]} 47. h4 {[%emt 0:00:04]} Rd8 {[%emt 0:00:05]} 48. Kf4 {[%emt 0:00:09]} Rg8 {[%emt 0:00:03]} 49. g5+ {[%emt 0:00:02]} hxg5+ {[%emt 0:00:00]} 50. hxg5+ {[%emt 0:00:00]} Kf7 {[%emt 0:00:00]} 51. Rg3 {[%emt 0:00:04]} Kg6 {[%emt 0:00:05]} 52. Ke5 {[%emt 0:00:03]} Bf7 {[%emt 0:00:04]} 53. Rf4 {[%emt 0:00:05]} Re8+ {[%emt 0:00:08]} 54. Kd4 {[%emt 0:00:01]} Kg7 {[%emt 0:00:06]} 55. g6 {[%emt 0:00:04]} Bg8 {[%emt 0:00:02]} 56. Re3 {[%emt 0:00:09]} Rb8 {[%emt 0:00:21]} 57. Rg4 {[%emt 0:00:06]} 1-0

[Event "FIDE Online Olympiad Div 2 Pool A 2020"]
[Site "Online"]
[Date "2020.08.16"]
[Round "9"]
[White "Wagner, Dennis"]
[Black "Petkov, Momchil"]
[Result "1-0"]
[ECO "D38"]
[WhiteElo "2279"]
[BlackElo "2265"]
[Annotator "broadcasts"]
[PlyCount "75"]
[EventDate "2020.08.14"]
[EventType "team-tourn"]
[TimeControl "900+5"]

1. d4 {[%emt 0:00:01]} Nf6 {[%emt 0:00:05]} 2. c4 {[%emt 0:00:01]} e6 {[%emt 0:00:03]} 3. Nf3 {[%emt 0:00:04]} d5 {[%emt 0:00:02]} 4. Nc3 {[%emt 0:00:01]} Bb4 {[%emt 0:00:02]} 5. Qa4+ {[%emt 0:00:33]} Nc6 {[%emt 0:00:03]} 6. e3 {[%emt 0:00:02]} O-O {[%emt 0:00:06]} 7. Qc2 {[%emt 0:00:02]} Re8 {[%emt 0:00:05]} 8. a3 {[%emt 0:00:13]} Bf8 {[%emt 0:00:31]} 9. Bd3 {[%emt 0:00:27]} dxc4 {[%emt 0:01:29]} 10. Bxc4 {[%emt 0:00:02]} e5 {[%emt 0:00:01]} 11. Ng5 {[%emt 0:02:33]} exd4 {[%emt 0:07:10]} 12. Nxf7 {[%emt 0:01:26]} Qe7 {[%emt 0:00:06]} 13. Ng5+ {[%emt 0:04:10]} Kh8 {[%emt 0:00:03]} 14. Nd5 {[%emt 0:01:15]} Qd7 {[%emt 0:00:08]} 15. Nb6 {[%emt 0:04:22]} cxb6 {[%emt 0:02:04]} 16. Nf7+ {[%emt 0:00:03]} Qxf7 {[%emt 0:00:11]} 17. Bxf7 {[%emt 0:00:02]} Re7 {[%emt 0:00:00]} 18. Ba2 {[%emt 0:00:07]} Ne4 {[%emt 0:00:59]} 19. O-O {[%emt 0:00:06]} Bf5 {[%emt 0:00:01]} 20. exd4 {[%emt 0:00:32]} Ng3 {[%emt 0:00:08]} 21. Qb3 {[%emt 0:00:15]} Ne2+ {[%emt 0:00:25]} 22. Kh1 {[%emt 0:00:01]} Be6 {[%emt 0:00:00]} 23. d5 {[%emt 0:00:02]} Ncd4 {[%emt 0:00:01]} 24. Qd1 {[%emt 0:00:08]} Bg4 {[%emt 0:00:21]} 25. f3 {[%emt 0:00:01]} Bf5 {[%emt 0:00:03]} 26. Bg5 {[%emt 0:00:12]} Re5 {[%emt 0:00:38]} 27. Bf4 {[%emt 0:00:03]} Ree8 {[%emt 0:00:10]} 28. Qd2 {[%emt 0:00:01]} Rac8 {[%emt 0:00:15]} 29. Bg3 {[%emt 0:00:30]} h6 {[%emt 0:00:40]} 30. d6 {[%emt 0:00:01]} Rc2 {[%emt 0:00:02]} 31. Qd1 {[%emt 0:00:04]} Rxb2 {[%emt 0:00:50]} 32. Bf2 {[%emt 0:00:01]} Nc6 {[%emt 0:00:09]} 33. Qd5 {[%emt 0:00:09]} Bh7 {[%emt 0:00:09]} 34. d7 {[%emt 0:00:01]} Rd8 {[%emt 0:00:01]} 35. Bh4 {[%emt 0:00:01]} Nf4 {[%emt 0:00:08]} 36. Qf7 {[%emt 0:00:10]} Ne5 {[%emt 0:00:41]} 37. Qxf4 {[%emt 0:00:04]} Ng6 {[%emt 0:00:05]} 38. Qc7 {[%emt 0:00:03]} 1-0

[Event "FIDE Online Olympiad Div 2 Pool A 2020"]
[Site "Online"]
[Date "2020.08.16"]
[Round "9"]
[White "Muetsch, Annmarie"]
[Black "Krasteva, Beloslava"]
[Result "1/2-1/2"]
[ECO "B30"]
[WhiteElo "2249"]
[BlackElo "1975"]
[Annotator "broadcasts"]
[PlyCount "112"]
[EventDate "2020.08.14"]
[EventType "team-tourn"]
[TimeControl "900+5"]

1. e4 {[%emt 0:00:02]} c5 {[%emt 0:00:02]} 2. Nc3 {[%emt 0:00:04]} Nc6 {[%emt 0:00:02]} 3. Bb5 {[%emt 0:00:02]} Nd4 {[%emt 0:00:02]} 4. Nf3 {[%emt 0:00:01]} a6 {[%emt 0:00:09]} 5. Bd3 {[%emt 0:00:05]} e6 {[%emt 0:01:17]} 6. O-O {[%emt 0:00:07]} Ne7 {[%emt 0:00:07]} 7. b3 {[%emt 0:00:11]} Nec6 {[%emt 0:00:17]} 8. a3 {[%emt 0:00:10]} Be7 {[%emt 0:00:13]} 9. Bb2 {[%emt 0:00:06]} O-O {[%emt 0:00:05]} 10. Nxd4 {[%emt 0:00:53]} cxd4 {[%emt 0:00:17]} 11. Ne2 {[%emt 0:00:06]} d5 {[%emt 0:00:13]} 12. exd5 {[%emt 0:00:26]} Qxd5 {[%emt 0:00:02]} 13. Ng3 {[%emt 0:01:23]} f5 {[%emt 0:02:20]} 14. f4 {[%emt 0:00:27]} b5 {[%emt 0:00:46]} 15. Be2 {[%emt 0:00:14]} Bb7 {[%emt 0:00:08]} 16. Bf3 {[%emt 0:00:07]} Qd7 {[%emt 0:00:20]} 17. d3 {[%emt 0:00:09]} Rad8 {[%emt 0:00:49]} 18. Qe2 {[%emt 0:00:17]} Rfe8 {[%emt 0:00:19]} 19. Rae1 {[%emt 0:00:30]} Bd6 {[%emt 0:00:40]} 20. Bc1 {[%emt 0:00:21]} Re7 {[%emt 0:00:40]} 21. b4 {[%emt 0:01:13]} Qc7 {[%emt 0:00:40]} 22. Kh1 {[%emt 0:00:58]} Rc8 {[%emt 0:00:34]} 23. Bd2 {[%emt 0:00:18]} Nd8 {[%emt 0:00:16]} 24. Rc1 {[%emt 0:00:21]} Bxf3 {[%emt 0:00:46]} 25. Qxf3 {[%emt 0:00:09]} Qc6 {[%emt 0:00:06]} 26. Qe2 {[%emt 0:02:25]} Qd5 {[%emt 0:00:15]} 27. c4 {[%emt 0:00:28]} dxc3 {[%emt 0:00:03]} 28. Rxc3 {[%emt 0:00:02]} Rxc3 {[%emt 0:00:13]} 29. Bxc3 {[%emt 0:00:00]} Rc7 {[%emt 0:00:02]} 30. Ba1 {[%emt 0:00:19]} Qc6 {[%emt 0:00:41]} 31. Nh5 {[%emt 0:00:43]} Bf8 {[%emt 0:00:43]} 32. Be5 {[%emt 0:00:15]} Rd7 {[%emt 0:00:11]} 33. h3 {[%emt 0:00:39]} Nf7 {[%emt 0:00:21]} 34. Ba1 {[%emt 0:01:00]} Nd8 {[%emt 0:00:44]} 35. Be5 {[%emt 0:00:37]} Qd5 {[%emt 0:00:42]} 36. d4 {[%emt 0:00:50]} Nc6 {[%emt 0:00:23]} 37. Rc1 {[%emt 0:00:20]} Kf7 {[%emt 0:01:01]} 38. Rd1 {[%emt 0:00:22]} a5 {[%emt 0:00:21]} 39. bxa5 {[%emt 0:00:05]} Nxa5 {[%emt 0:00:10]} 40. Ra1 {[%emt 0:00:45]} Nc4 {[%emt 0:00:14]} 41. Kh2 {[%emt 0:00:06]} Ra7 {[%emt 0:00:40]} 42. Qf2 {[%emt 0:00:07]} Rxa3 {[%emt 0:00:19]} 43. Rxa3 {[%emt 0:00:02]} Nxa3 {[%emt 0:00:01]} 44. Qg3 {[%emt 0:00:03]} g6 {[%emt 0:00:15]} 45. Nf6 {[%emt 0:00:02]} Qa2 {[%emt 0:00:10]} 46. Nxh7 {[%emt 0:00:03]} Nc4 {[%emt 0:00:01]} 47. Ng5+ {[%emt 0:00:04]} Kg8 {[%emt 0:00:03]} 48. Nxe6 {[%emt 0:00:02]} Nxe5 {[%emt 0:00:02]} 49. Nxf8 {[%emt 0:00:05]} Ng4+ {[%emt 0:00:02]} 50. hxg4 {[%emt 0:00:02]} Kxf8 {[%emt 0:00:01]} 51. gxf5 {[%emt 0:00:03]} gxf5 {[%emt 0:00:01]} 52. Qg6 {[%emt 0:00:09]} Qd5 {[%emt 0:00:04]} 53. Qf6+ {[%emt 0:00:06]} Kg8 {[%emt 0:00:10]} 54. Qg6+ {[%emt 0:00:02]} Kf8 {[%emt 0:00:02]} 55. Qf6+ {[%emt 0:00:01]} Kg8 {[%emt 0:00:01]} 56. Qg6+ {[%emt 0:00:15]} Kf8 {[%emt 0:00:02]} 1/2-1/2